bitfinex-derivatives/quotes_BTCF0:USTF0_20260104
["timestamp","ask_amount","ask_price","bid_price","bid_amount"]
[1767515581294,0.03185489,91357.0,91338.0,0.010953]
[1767515581609,0.03185489,91357.0,91348.0,0.010952]
[1767515582012,0.03185489,91357.0,91336.0,0.09078273]
[1767515583105,0.03185489,91356.0,91336.0,0.09078273]
[1767515583304,0.03185489,91356.0,91345.0,0.010952]
[1767515583909,0.03185489,91356.0,91347.0,0.010952]
[1767515584105,0.03185489,91356.0,91349.0,0.010951]
[1767515585108,0.03185489,91356.0,91348.0,0.010952]
[1767515585908,0.00016421,91358.0,91348.0,0.010952]
[1767515586110,0.40016421,91358.0,91348.0,0.010952]
[1767515586306,0.40016421,91358.0,91350.0,0.010951]
[1767515586512,0.00016421,91358.0,91350.0,0.010951]
[1767515587700,0.00016421,91358.0,91343.0,0.03011986]
[1767515587905,0.00016421,91358.0,91338.0,0.09312]
[1767515588915,0.00016421,91358.0,91339.0,0.00016421]
[1767515589103,0.00016421,91358.0,91349.0,0.010951]
[1767515589502,0.00016421,91358.0,91350.0,0.010951]
[1767515590009,0.00016421,91358.0,91351.0,0.010951]
[1767515590205,0.00016421,91358.0,91349.0,0.010951]
[1767515591316,0.00016421,91358.0,91342.0,0.13185459]
[1767515591514,0.010951,91356.0,91343.0,0.010952]
[1767515591814,0.010951,91354.0,91343.0,0.010952]
[1767515592011,0.010951,91350.0,91339.0,0.00016421]
[1767515592511,0.010952,91346.0,91332.0,0.010953]
[1767515592815,0.03185489,91347.0,91333.0,0.09312]
[1767515593014,0.02621653,91346.0,91333.0,0.09312]
[1767515593216,0.02621653,91345.0,91333.0,0.09312]
[1767515593411,0.02621653,91344.0,91333.0,0.09312]
[1767515593616,0.02621653,91343.0,91333.0,0.09312]
[1767515593817,0.02621653,91342.0,91333.0,0.09312]
[1767515594120,0.02621653,91341.0,91333.0,0.09312]
[1767515594313,0.02621653,91340.0,91333.0,0.09312]
[1767515594615,0.02621653,91339.0,91333.0,0.09312]
[1767515594819,0.02621653,91338.0,91333.0,0.09312]
[1767515595119,0.02621653,91337.0,91333.0,0.09312]
[1767515595306,0.010952,91345.0,91333.0,0.09312]
[1767515595511,0.02618545,91344.0,91333.0,0.09312]
[1767515595711,0.02618545,91343.0,91333.0,0.09312]
[1767515596016,0.02618545,91342.0,91333.0,0.09312]
[1767515596216,0.02618545,91341.0,91333.0,0.09312]
[1767515596514,0.02618545,91340.0,91333.0,0.09312]
[1767515596715,0.02618545,91339.0,91329.0,0.01111821]
[1767515596914,0.010952,91345.0,91330.0,0.09312]
[1767515596915,0.02618545,91338.0,91330.0,0.09312]
[1767515597115,0.02618545,91337.0,91330.0,0.09312]
[1767515597317,0.02618545,91336.0,91330.0,0.09312]
[1767515597512,0.010952,91345.0,91330.0,0.09312]
[1767515597714,0.0261856,91344.0,91330.0,0.09312]
[1767515597916,0.0261856,91343.0,91330.0,0.09312]
[1767515598116,0.0261856,91342.0,91330.0,0.09312]
[1767515598319,0.0261856,91341.0,91330.0,0.09312]
[1767515598618,0.0261856,91340.0,91331.0,0.010954]
[1767515598818,0.0261856,91339.0,91331.0,0.010954]
[1767515599013,0.0261856,91338.0,91331.0,0.010954]
[1767515599219,0.0261856,91337.0,91331.0,0.010954]
[1767515599422,0.02585718,91336.0,91330.0,0.104074]
[1767515599613,0.010952,91346.0,91330.0,0.104074]
[1767515600813,0.010952,91346.0,91332.0,0.010953]
[1767515601120,0.03185489,91347.0,91334.0,0.010953]
[1767515601519,0.010952,91346.0,91330.0,0.09312]
[1767515602424,0.010952,91346.0,91333.0,0.010953]
[1767515602625,0.03185489,91346.0,91330.0,0.104074]
[1767515602828,0.03185489,91346.0,91332.0,0.010953]
[1767515603133,0.03185489,91346.0,91334.0,0.010953]
[1767515604228,0.03185489,91346.0,91336.0,0.010953]
[1767515605137,0.09696997,91348.0,91338.0,0.010953]
[1767515605330,0.00218942,91349.0,91338.0,0.010953]
[1767515605524,0.03404431,91349.0,91338.0,0.010953]
[1767515606223,0.03404431,91349.0,91341.0,0.010952]
[1767515606425,0.00218942,91349.0,91341.0,0.010952]
[1767515606929,0.00218942,91349.0,91345.0,0.010952]
[1767515608939,4.2e-07,91349.0,91347.0,0.010952]
[1767515609122,4.2e-07,91349.0,91347.0,0.10173473]
[1767515610324,4.2e-07,91349.0,91347.0,0.010952]
[1767515610630,4.2e-07,91349.0,91344.0,0.010952]
[1767515612328,4.2e-07,91349.0,91341.0,0.03236023]
[1767515612529,4.2e-07,91349.0,91347.0,0.010952]
[1767515619635,4.2e-07,91349.0,91348.0,0.09192883]
[1767515620521,4.2e-07,91349.0,91348.0,0.12340269]
[1767515620727,0.10407,91363.0,91351.0,0.03147386]
[1767515620927,0.02622497,91362.0,91351.0,0.03147386]
[1767515621125,0.02622497,91361.0,91351.0,0.03147386]
[1767515621327,0.02622497,91360.0,91352.0,0.03147386]
[1767515621528,0.02622497,91359.0,91352.0,0.03147386]
[1767515621727,0.02622497,91358.0,91352.0,0.03147386]
[1767515621927,0.02622497,91357.0,91352.0,0.03147386]
[1767515622127,0.02622497,91356.0,91352.0,0.03147386]
[1767515622328,0.02622497,91355.0,91352.0,0.03147386]
[1767515622527,0.01095,91363.0,91352.0,0.03147386]
[1767515622731,0.02622387,91362.0,91352.0,0.03147386]
[1767515622933,0.02622387,91361.0,91352.0,0.03147386]
[1767515623232,0.02622387,91360.0,91352.0,0.03147386]
[1767515623431,0.02622387,91359.0,91352.0,0.03147386]
[1767515623633,8.7e-07,91358.0,91356.0,0.010951]
[1767515623837,0.00016421,91365.0,91357.0,0.01095]
[1767515624220,0.00016421,91365.0,91352.0,0.03147386]
[1767515624221,0.00016421,91365.0,91353.0,0.010951]
[1767515624428,0.00016421,91365.0,91355.0,0.010951]
[1767515624730,0.00016421,91365.0,91352.0,0.12340269]
[1767515625132,0.01111421,91365.0,91352.0,0.09192883]
[1767515625326,0.01111421,91365.0,91353.0,0.010951]
[1767515625826,0.00016421,91365.0,91353.0,0.010951]
[1767515626027,0.00016421,91365.0,91355.0,0.010951]
[1767515628837,0.00016421,91365.0,91349.0,0.03147386]
[1767515629030,0.00016421,91365.0,91354.0,0.010951]
[1767515630632,0.00016421,91365.0,91350.0,0.09192883]
[1767515630833,0.00016421,91365.0,91346.0,0.00016421]
[1767515630834,0.00016421,91365.0,91358.0,0.03147386]
[1767515631137,0.09312,91369.0,91358.0,0.03147386]
[1767515631438,0.09312,91369.0,91357.0,0.09192883]
[1767515632737,0.09312,91369.0,91357.0,0.10287883]
[1767515633338,0.010949,91368.0,91357.0,0.09192883]
[1767515633823,0.09312,91369.0,91357.0,0.09192883]
[1767515634738,0.010949,91368.0,91357.0,0.09192883]
[1767515635239,0.010949,91367.0,91357.0,0.09192883]
[1767515635642,0.02562721,91366.0,91357.0,0.09192883]
[1767515635839,0.02562721,91365.0,91357.0,0.09192883]
[1767515636041,0.02562721,91364.0,91357.0,0.09192883]
[1767515636234,0.02562721,91363.0,91357.0,0.09192883]
[1767515636442,0.02562721,91362.0,91357.0,0.09192883]
[1767515636642,0.02562721,91361.0,91357.0,0.09192883]
[1767515636941,0.02562721,91360.0,91357.0,0.09192883]
[1767515637142,0.02562721,91359.0,91357.0,0.09192883]
[1767515637337,0.02562721,91358.0,91357.0,0.09192883]
[1767515637537,0.02562721,91358.0,91352.0,0.12438248]
[1767515637743,0.02562721,91357.0,91352.0,0.12438248]
[1767515637942,0.02562721,91356.0,91353.0,0.09192883]
[1767515638144,0.010949,91367.0,91353.0,0.09192883]
[1767515638333,0.02562626,91366.0,91353.0,0.09192883]
[1767515638533,0.09312,91369.0,91353.0,0.09192883]
[1767515638534,0.03657626,91365.0,91353.0,0.09192883]
[1767515638733,0.02562626,91364.0,91353.0,0.09192883]
[1767515640643,0.04752021,91363.0,91346.0,0.00016421]
[1767515640846,0.010951,91354.0,91346.0,0.00016421]
[1767515641037,0.02562626,91353.0,91346.0,0.00016421]
[1767515641434,0.010951,91354.0,91346.0,0.00016421]
[1767515641642,0.010951,91356.0,91346.0,0.00016421]
[1767515642149,0.010951,91355.0,91346.0,0.00016421]
[1767515643550,0.010951,91354.0,91346.0,0.00016421]
[1767515644834,0.010951,91351.0,91346.0,0.00016421]
[1767515645040,0.010951,91350.0,91339.0,0.09312]
[1767515645239,0.02986875,91355.0,91339.0,0.104073]
[1767515645645,0.010951,91353.0,91340.0,0.010952]
[1767515646047,0.02986875,91358.0,91339.0,0.104073]
[1767515646444,0.010951,91352.0,91339.0,0.104073]
[1767515646951,0.010951,91351.0,91339.0,0.09312]
[1767515648144,0.010951,91351.0,91339.0,0.104073]
[1767515649848,0.010951,91353.0,91340.0,0.010953]
[1767515651047,0.00016421,91354.0,91342.0,0.010952]
[1767515651247,0.00016421,91354.0,91339.0,0.20781585]
[1767515651449,0.00016421,91354.0,91344.0,0.010952]
[1767515652654,0.00016421,91354.0,91349.0,0.010951]
[1767515656060,0.00016421,91354.0,91344.0,0.1145568]
[1767515657161,0.00016421,91354.0,91349.0,0.010951]
[1767515658862,0.00016421,91354.0,91344.0,0.1145568]
[1767515660363,0.00016421,91354.0,91348.0,0.010952]
[1767515664063,0.00016421,91354.0,91350.0,0.010951]
[1767515664663,0.00016421,91354.0,91348.0,0.010952]
[1767515665964,0.00016421,91354.0,91349.0,0.010951]
[1767515666956,0.00016421,91354.0,91348.0,0.010951]
[1767515667759,0.00016421,91354.0,91346.0,0.010952]
[1767515670262,0.00016421,91354.0,91346.0,0.12313362]
[1767515670561,0.00016421,91354.0,91348.0,0.010952]
[1767515670762,0.00016421,91354.0,91349.0,0.10925997]
[1767515671965,0.00016421,91354.0,91350.0,0.010951]
[1767515672158,0.00016421,91354.0,91350.0,0.10925997]
[1767515672673,0.00016421,91354.0,91350.0,0.09830897]
[1767515681377,0.02577471,91353.0,91350.0,0.09830897]
[1767515681578,0.02577471,91352.0,91350.0,0.09830897]
[1767515681775,0.02577471,91351.0,91350.0,0.09830897]
[1767515682073,0.02577471,91353.0,91350.0,0.09830897]
[1767515682267,0.02577471,91352.0,91350.0,0.09830897]
[1767515682467,0.02577471,91351.0,91350.0,0.09830897]
[1767515682867,0.02577471,91353.0,91350.0,0.09830897]
[1767515683071,0.02577471,91352.0,91350.0,0.09830897]
[1767515683272,0.02577471,91351.0,91350.0,0.09830897]
[1767515683670,0.02577471,91353.0,91350.0,0.09830897]
[1767515683875,0.02577471,91352.0,91350.0,0.09830897]
[1767515684070,0.02577471,91351.0,91350.0,0.09830897]
[1767515684471,0.02577471,91353.0,91350.0,0.09830897]
[1767515684670,0.02577471,91352.0,91350.0,0.09830897]
[1767515684875,0.02577471,91351.0,91350.0,0.09830897]
[1767515685570,0.02577471,91353.0,91350.0,0.09830897]
[1767515691384,0.00016421,91354.0,91350.0,0.09830897]
[1767515697303,0.00016421,91354.0,91350.0,0.10925997]
[1767515698501,0.00016421,91354.0,91351.0,0.010951]
[1767515698707,0.00016421,91354.0,91350.0,0.09830897]
[1767515699908,0.00016421,91354.0,91350.0,0.10264979]
[1767515701005,0.02387034,91373.0,91354.0,0.09794303]
[1767515701204,0.010949,91367.0,91359.0,0.09794303]
[1767515701412,0.010949,91366.0,91360.0,0.00387631]
[1767515701608,0.09312,91368.0,91361.0,0.09794303]
[1767515701808,0.4,91377.0,91362.0,0.00387631]
[1767515702008,0.010949,91368.0,91362.0,0.00387631]
[1767515702202,0.09312,91376.0,91362.0,0.00387631]
[1767515702402,0.09312,91376.0,91361.0,0.09406672]
[1767515702808,0.010949,91369.0,91361.0,0.09406672]
[1767515703514,0.010949,91368.0,91361.0,0.09406672]
[1767515703809,0.010949,91366.0,91361.0,0.09406672]
[1767515706309,0.4,91377.0,91361.0,0.09406672]
[1767515706310,0.010949,91367.0,91361.0,0.09406672]
[1767515706501,0.09312,91370.0,91361.0,0.09406672]
[1767515706706,0.010949,91367.0,91361.0,0.09406672]
[1767515708215,0.010949,91367.0,91360.0,0.00016421]
[1767515708417,0.01095,91366.0,91360.0,0.00016421]
[1767515713416,0.02573824,91365.0,91360.0,0.00016421]
[1767515713616,0.02573824,91364.0,91360.0,0.00016421]
[1767515713819,0.02573824,91363.0,91360.0,0.00016421]
[1767515714020,0.02573824,91362.0,91360.0,0.00016421]
[1767515714315,0.02573824,91361.0,91360.0,0.00016421]
[1767515721621,0.02573824,91361.0,91351.0,0.010951]
[1767515721818,0.02573824,91360.0,91351.0,0.010951]
[1767515722019,0.01095,91364.0,91351.0,0.010951]
[1767515722020,0.02573824,91359.0,91351.0,0.010951]
[1767515722222,0.02573824,91358.0,91351.0,0.010951]
[1767515722524,0.02573824,91357.0,91351.0,0.010951]
[1767515722717,0.02573824,91356.0,91351.0,0.10501772]
[1767515722917,0.02573824,91355.0,91351.0,0.10501772]
[1767515723115,0.01095,91364.0,91352.0,0.010951]
[1767515724823,0.010949,91368.0,91354.0,0.010951]
[1767515731130,0.09308,91374.0,91358.0,0.09964518]
[1767515731328,0.09308,91374.0,91361.0,0.09964518]
[1767515732028,0.010948,91377.0,91362.0,0.01095]
[1767515733234,0.010948,91376.0,91362.0,0.01095]
[1767515733437,0.11600205,91380.0,91361.0,0.09964518]
[1767515733824,0.12695005,91380.0,91361.0,0.09964518]
[1767515734227,0.01111221,91379.0,91364.0,0.01095]
[1767515734740,0.010948,91376.0,91362.0,0.01095]
[1767515735239,0.02574299,91375.0,91362.0,0.01095]
[1767515735431,0.02574299,91374.0,91362.0,0.01095]
[1767515735625,0.02574299,91373.0,91362.0,0.01095]
[1767515735830,0.02574299,91372.0,91362.0,0.01095]
[1767515736131,0.010948,91376.0,91362.0,0.01095]
[1767515736448,0.02573709,91375.0,91362.0,0.01095]
[1767515736629,0.03668509,91374.0,91362.0,0.01095]
[1767515736824,0.02573709,91373.0,91361.0,0.09964518]
[1767515737037,0.010948,91374.0,91361.0,0.09964518]
[1767515737240,0.0257371,91373.0,91361.0,0.09964518]
[1767515737432,0.010948,91374.0,91361.0,0.09964518]
[1767515737631,0.02573487,91373.0,91361.0,0.09964518]
[1767515737827,0.010948,91374.0,91361.0,0.09964518]
[1767515738026,0.02573486,91373.0,91361.0,0.09964518]
[1767515738230,0.010948,91374.0,91362.0,0.01095]
[1767515738436,0.02573306,91373.0,91362.0,0.01095]
[1767515738636,0.010948,91374.0,91362.0,0.01095]
[1767515738938,0.02573308,91373.0,91362.0,0.01095]
[1767515739139,0.010948,91374.0,91362.0,0.01095]
[1767515739327,0.02573184,91373.0,91362.0,0.01095]
[1767515739641,0.010948,91377.0,91362.0,0.01095]
[1767515739841,0.02573155,91376.0,91362.0,0.01095]
[1767515740140,0.02573155,91375.0,91362.0,0.01095]
[1767515740335,0.02573155,91374.0,91362.0,0.01095]
[1767515740534,0.02573155,91373.0,91362.0,0.01095]
[1767515740736,0.010948,91377.0,91362.0,0.01095]
[1767515740927,0.010948,91375.0,91361.0,0.01095]
[1767515741131,0.02573031,91374.0,91360.0,0.0474933]
[1767515741431,0.02573031,91373.0,91357.0,0.09376908]
[1767515741631,0.02225808,91379.0,91357.0,0.09376908]
[1767515741833,0.04782316,91378.0,91357.0,0.09376908]
[1767515742033,0.02572929,91377.0,91359.0,0.01095]
[1767515742238,0.02572929,91376.0,91359.0,0.01095]
[1767515742439,0.02572929,91375.0,91359.0,0.01095]
[1767515742638,0.02572929,91374.0,91359.0,0.01095]
[1767515742840,0.010948,91375.0,91361.0,0.01095]
[1767515743040,0.02572854,91374.0,91359.0,0.09308]
[1767515743344,0.010948,91377.0,91363.0,0.01095]
[1767515743545,0.02572807,91376.0,91363.0,0.01095]
[1767515743740,0.02572807,91375.0,91363.0,0.01095]
[1767515743947,0.02572807,91374.0,91365.0,0.010949]
[1767515744136,0.010948,91377.0,91365.0,0.010949]
[1767515744336,0.02572771,91376.0,91365.0,0.010949]
[1767515744540,0.02572771,91375.0,91363.0,0.01095]
[1767515744740,0.02572771,91374.0,91363.0,0.01095]
[1767515745047,0.010948,91377.0,91363.0,0.01095]
[1767515745338,0.00016421,91379.0,91361.0,0.09376908]
[1767515745339,0.02572771,91376.0,91361.0,0.09376908]
[1767515745542,0.00016421,91379.0,91361.0,0.09376908]
[1767515745744,0.02572834,91378.0,91361.0,0.09376908]
[1767515745930,0.02572834,91377.0,91361.0,0.09376908]
[1767515746136,0.02572834,91376.0,91363.0,0.09376908]
[1767515746442,0.010948,91377.0,91365.0,0.010949]
[1767515746647,0.02572768,91376.0,91363.0,0.10471908]
[1767515746847,0.010948,91376.0,91363.0,0.10471908]
[1767515747944,0.00016421,91379.0,91363.0,0.09376908]
[1767515748144,0.0257576,91378.0,91365.0,0.010949]
[1767515748347,0.00016421,91379.0,91366.0,0.09376908]
[1767515748742,0.01111221,91379.0,91366.0,0.09376908]
[1767515748942,0.02563894,91378.0,91366.0,0.09376908]
[1767515749242,0.01111221,91379.0,91366.0,0.09376908]
[1767515750350,0.02563848,91378.0,91366.0,0.09376908]
[1767515750550,0.01111221,91379.0,91366.0,0.09376908]
[1767515750551,0.01111221,91379.0,91367.0,0.010949]
[1767515751347,0.02563903,91378.0,91367.0,0.010949]
[1767515751548,0.02563903,91377.0,91367.0,0.010949]
[1767515751747,0.01111221,91379.0,91367.0,0.010949]
[1767515751942,0.03658703,91378.0,91366.0,0.09376908]
[1767515752147,0.02563903,91377.0,91368.0,0.0474933]
[1767515752345,0.00016421,91379.0,91368.0,0.0474933]
[1767515752543,0.010947,91383.0,91369.0,0.010949]
[1767515752744,0.02209387,91387.0,91369.0,0.010949]
[1767515753351,0.02209387,91387.0,91368.0,0.0474933]
[1767515753352,0.010947,91384.0,91370.0,0.010949]
[1767515753652,0.010947,91385.0,91371.0,0.010949]
[1767515754245,0.09765734,91390.0,91373.0,0.010949]
[1767515754544,0.010947,91385.0,91371.0,0.010949]
[1767515755843,0.010947,91384.0,91370.0,0.010949]
[1767515756655,0.010947,91384.0,91371.0,0.010949]
[1767515756852,0.02209387,91388.0,91369.0,0.09308]
[1767515757349,0.02209387,91388.0,91372.0,0.010949]
[1767515758346,0.010947,91387.0,91374.0,0.010948]
[1767515758741,0.02209387,91388.0,91374.0,0.010948]
[1767515758942,0.010947,91387.0,91374.0,0.010948]
[1767515759755,0.010947,91385.0,91371.0,0.010949]
[1767515760256,0.00016421,91389.0,91369.0,0.18684908]
[1767515760659,0.010947,91388.0,91369.0,0.18684908]
[1767515760853,0.010947,91388.0,91374.0,0.010948]
[1767515761056,0.02128256,91388.0,91372.0,0.010949]
[1767515761761,0.010947,91384.0,91372.0,0.010949]
[1767515762063,0.010947,91384.0,91371.0,0.010949]
[1767515762249,0.104026,91394.0,91371.0,0.010949]
[1767515762250,0.03222856,91398.0,91375.0,0.010948]
[1767515762454,0.03222856,91398.0,91380.0,0.0474933]
[1767515762455,0.010946,91397.0,91380.0,0.0474933]
[1767515762654,0.010946,91395.0,91381.0,0.010948]
[1767515763359,0.01111021,91397.0,91383.0,0.010947]
[1767515763565,0.00016421,91397.0,91384.0,0.010947]
[1767515764261,0.00016421,91397.0,91381.0,0.00016421]
[1767515764262,0.010946,91395.0,91381.0,0.01111121]
[1767515764650,0.02144677,91397.0,91381.0,0.00016421]
[1767515764854,0.02128256,91395.0,91381.0,0.00016421]
[1767515765067,0.11554971,91395.0,91381.0,0.00016421]
[1767515765364,0.010948,91382.0,91365.0,0.04382422]
[1767515765666,0.02128256,91385.0,91370.0,0.104029]
[1767515765962,0.03222956,91385.0,91365.0,0.13922972]
[1767515766163,0.010947,91383.0,91366.0,0.18823244]
[1767515766355,0.010947,91383.0,91371.0,0.010949]
[1767515766556,0.02128256,91385.0,91371.0,0.010949]
[1767515766756,0.02128256,91385.0,91371.0,0.104029]
[1767515767256,0.02128256,91388.0,91371.0,0.104029]
[1767515767662,0.02128256,91388.0,91371.0,0.09308]
[1767515767858,0.010947,91387.0,91374.0,0.010948]
[1767515768056,0.09426715,91389.0,91374.0,0.010948]
[1767515768460,0.010947,91389.0,91374.0,0.010948]
[1767515769079,0.010947,91389.0,91371.0,0.09308]
[1767515771270,0.03222956,91391.0,91374.0,0.010948]
[1767515771473,0.03637605,91390.0,91374.0,0.010948]
[1767515771672,0.02542905,91389.0,91374.0,0.010948]
[1767515771863,0.02542905,91388.0,91374.0,0.010948]
[1767515772064,0.010947,91390.0,91374.0,0.010948]
[1767515772264,0.0254274,91389.0,91371.0,0.09308]
[1767515772566,0.0254274,91388.0,91371.0,0.09308]
[1767515772766,0.0254274,91387.0,91377.0,0.010948]
[1767515772962,0.010947,91390.0,91377.0,0.010948]
[1767515773168,0.025424,91389.0,91377.0,0.010948]
[1767515773374,0.025424,91388.0,91377.0,0.010948]
[1767515773677,0.025424,91387.0,91377.0,0.010948]
[1767515773976,0.03222956,91391.0,91377.0,0.010948]
[1767515774172,0.02542463,91390.0,91377.0,0.010948]
[1767515774373,0.02542463,91389.0,91377.0,0.010948]
[1767515774574,0.02542463,91388.0,91377.0,0.010948]
[1767515774873,0.02542463,91387.0,91375.0,0.010948]
[1767515775777,0.03637163,91387.0,91375.0,0.010948]
[1767515775980,0.02542463,91386.0,91371.0,0.09308]
[1767515776279,0.03222956,91390.0,91371.0,0.09308]
[1767515776471,0.010947,91388.0,91376.0,0.010948]
[1767515776665,0.02542777,91387.0,91376.0,0.010948]
[1767515776872,0.02542777,91386.0,91374.0,0.010948]
[1767515777069,0.010947,91387.0,91374.0,0.010948]
[1767515777269,0.02542757,91386.0,91375.0,0.010948]
[1767515777469,0.010947,91387.0,91375.0,0.010948]
[1767515777670,0.02542931,91386.0,91370.0,0.23572574]
[1767515777878,0.03222956,91389.0,91370.0,0.23572574]
[1767515778076,0.02542926,91388.0,91370.0,0.23572574]
[1767515778379,0.02542926,91387.0,91370.0,0.23572574]
[1767515778580,0.02542926,91386.0,91370.0,0.23572574]
[1767515778781,0.010947,91387.0,91375.0,0.010948]
[1767515778980,0.02509748,91386.0,91370.0,0.23572574]
[1767515779182,0.03222956,91389.0,91370.0,0.23572574]
[1767515779381,0.02510025,91388.0,91370.0,0.23572574]
[1767515779581,0.02510025,91387.0,91370.0,0.23572574]
[1767515779777,0.02510025,91386.0,91370.0,0.23572574]
[1767515779976,0.02128256,91389.0,91370.0,0.23572574]
[1767515780180,0.010947,91387.0,91375.0,0.010948]
[1767515780481,0.02509997,91386.0,91375.0,0.010948]
[1767515781183,0.02128256,91396.0,91387.0,0.010947]
[1767515781488,0.02128256,91396.0,91385.0,0.010947]
[1767515781785,0.02128256,91396.0,91386.0,0.010947]
[1767515784380,0.02128256,91396.0,91388.0,0.010947]
[1767515784584,0.02128256,91396.0,91380.0,0.0474933]
[1767515784884,0.02128256,91396.0,91389.0,0.010947]
[1767515787087,0.02128256,91396.0,91387.0,0.010947]
[1767515788388,0.02128256,91396.0,91388.0,0.010947]
[1767515788581,0.02128256,91396.0,91380.0,0.0474933]
[1767515788781,0.02128256,91383.0,91375.0,0.010948]
[1767515789181,0.02128256,91383.0,91374.0,0.04284448]
[1767515789887,0.09426715,91384.0,91375.0,0.010948]
[1767515791587,0.02128256,91386.0,91375.0,0.010948]
[1767515794191,0.02128256,91386.0,91374.0,0.04383283]
[1767515794389,0.02128256,91386.0,91373.0,0.010949]
[1767515794782,0.02128256,91386.0,91373.0,0.05476115]
[1767515794982,0.02128256,91386.0,91375.0,0.010948]
[1767515795183,0.02128256,91386.0,91373.0,0.04381215]
[1767515796087,0.02128256,91386.0,91373.0,0.0437304]
[1767515796291,0.11876739,91386.0,91376.0,0.010948]
[1767515796790,0.01953781,91385.0,91375.0,0.010948]
[1767515796990,0.01953781,91385.0,91377.0,0.010948]
[1767515797791,0.01953781,91385.0,91374.0,0.010948]
[1767515798584,0.01953781,91385.0,91376.0,0.010948]
[1767515799691,0.09748483,91384.0,91371.0,0.2851564]
[1767515799895,0.01953781,91379.0,91371.0,0.32918677]
[1767515800093,0.01953781,91379.0,91371.0,0.2851564]
[1767515800287,0.09748483,91380.0,91374.0,0.010948]
[1767515800491,0.09748483,91380.0,91371.0,0.32878482]
[1767515801198,0.01953781,91382.0,91376.0,0.010948]
[1767515801996,0.01953781,91382.0,91371.0,0.32881526]
[1767515802199,0.01953781,91382.0,91376.0,0.010948]
[1767515802588,0.01953781,91382.0,91371.0,0.2851564]
[1767515802589,0.01953781,91382.0,91373.0,0.04365886]
[1767515803895,0.01953781,91382.0,91373.0,0.0425603]
[1767515804399,0.01953781,91382.0,91376.0,0.010948]
[1767515804698,0.01953781,91382.0,91371.0,0.3277167]
[1767515805092,0.01953781,91382.0,91371.0,0.32855427]
[1767515805598,0.11702264,91385.0,91377.0,0.010948]
[1767515806199,0.11702264,91385.0,91373.0,0.04372979]
[1767515806599,0.11702264,91385.0,91368.0,0.09308]
[1767515806790,0.11702264,91385.0,91369.0,0.010949]
[1767515806987,0.01953781,91384.0,91369.0,0.010949]
[1767515807192,0.11702264,91384.0,91379.0,0.010948]
[1767515807501,0.11702264,91384.0,91369.0,0.010949]
[1767515807699,0.11702264,91384.0,91377.0,0.010948]
[1767515808096,0.11702264,91384.0,91378.0,0.010948]
[1767515808600,0.11702264,91384.0,91369.0,0.010949]
[1767515811301,0.11702264,91384.0,91376.0,0.010948]
[1767515811897,0.11702264,91384.0,91369.0,0.010949]
[1767515812105,0.11702264,91384.0,91377.0,0.010948]
[1767515812305,0.01953781,91383.0,91377.0,0.010948]
[1767515816010,0.01953781,91383.0,91369.0,0.010949]
[1767515816708,0.01953781,91383.0,91377.0,0.010948]
[1767515817209,0.01953781,91383.0,91369.0,0.010949]
[1767515817612,0.01953781,91383.0,91376.0,0.010948]
[1767515817910,0.01953781,91383.0,91368.0,0.09308]
[1767515818611,0.01953781,91383.0,91377.0,0.010948]
[1767515818805,0.01953781,91383.0,91368.0,0.09308]
[1767515819005,0.01953781,91383.0,91375.0,0.010948]
[1767515820621,0.01938391,91387.0,91379.0,0.010948]
[1767515821109,0.01938391,91387.0,91377.0,0.010948]
[1767515821615,0.02503684,91386.0,91377.0,0.010948]
[1767515821916,0.02503684,91385.0,91368.0,0.09308]
[1767515822119,0.01938391,91387.0,91368.0,0.09308]
[1767515822317,0.04442082,91386.0,91368.0,0.09308]
[1767515822504,0.02503691,91385.0,91376.0,0.010948]
[1767515823319,0.04442082,91385.0,91376.0,0.010948]
[1767515823509,0.01938391,91385.0,91368.0,0.09308]
[1767515824317,0.01938391,91385.0,91378.0,0.010948]
[1767515824519,0.01938391,91385.0,91368.0,0.09308]
[1767515825019,0.01938391,91385.0,91376.0,0.010948]
[1767515825819,0.01938391,91385.0,91368.0,0.09308]
[1767515826420,0.01938391,91385.0,91376.0,0.010948]
[1767515826720,0.01938391,91385.0,91368.0,0.09308]
[1767515827318,0.01938391,91385.0,91376.0,0.010948]
[1767515828022,0.01938391,91385.0,91368.0,0.09308]
[1767515828318,0.01938391,91385.0,91376.0,0.010948]
[1767515828520,0.01938391,91385.0,91368.0,0.09308]
[1767515828921,0.01938391,91385.0,91378.0,0.010948]
[1767515829213,0.0250413,91384.0,91368.0,0.09308]
[1767515829419,0.01938391,91385.0,91368.0,0.09308]
[1767515829719,0.0250413,91384.0,91368.0,0.09308]
[1767515829921,0.01938391,91385.0,91378.0,0.010948]
[1767515830118,0.02504129,91384.0,91378.0,0.010948]
[1767515830321,0.01938391,91385.0,91368.0,0.09308]
[1767515830517,0.02504239,91384.0,91378.0,0.010948]
[1767515830716,0.01938391,91385.0,91368.0,0.09308]
[1767515830918,0.02504239,91384.0,91368.0,0.09308]
[1767515831123,0.01938391,91385.0,91368.0,0.09308]
[1767515831425,0.01938391,91385.0,91377.0,0.010948]
[1767515831619,0.01938391,91385.0,91368.0,0.09308]
[1767515831809,0.09308,91388.0,91369.0,0.0991448]
[1767515832011,0.11246391,91388.0,91369.0,0.0991448]
[1767515832410,0.11246391,91388.0,91377.0,0.010948]
[1767515833213,0.11246391,91388.0,91380.0,0.010948]
[1767515833413,0.09308,91388.0,91380.0,0.010948]
[1767515833923,0.09308,91388.0,91370.0,0.010949]
[1767515834118,0.03032991,91391.0,91370.0,0.010949]
[1767515834119,0.01938391,91390.0,91378.0,0.010948]
[1767515834319,0.09308,91389.0,91378.0,0.010948]
[1767515834519,0.09308,91389.0,91379.0,0.010948]
[1767515835526,0.11246391,91389.0,91379.0,0.010948]
[1767515836622,0.01938391,91389.0,91379.0,0.010948]
[1767515836822,0.09308,91388.0,91380.0,0.010948]
[1767515837826,0.09308,91388.0,91371.0,0.010949]
[1767515838030,0.03033091,91387.0,91376.0,0.010948]
[1767515838421,0.03033091,91387.0,91368.0,0.09308]
[1767515841024,0.03033091,91387.0,91373.0,0.010948]
[1767515841827,0.03033091,91387.0,91375.0,0.010948]
[1767515842128,0.03033091,91387.0,91372.0,0.010949]
[1767515842326,0.03033091,91387.0,91374.0,0.010948]
[1767515844532,0.010947,91385.0,91374.0,0.010948]
[1767515844721,0.01938391,91385.0,91368.0,0.09308]
[1767515844919,0.1912137,91389.0,91366.0,0.00016421]
[1767515844920,0.01938391,91377.0,91366.0,0.00016421]